fUSD/lending_fUSD_20240630
["ID","MTS","AMOUNT","RATE_DAILY","PERIOD"]
[330690240,1719711078902,-500.0,0.00014356,3]
[330690241,1719711078912,-500.0,0.00014356,3]
[330690242,1719711078922,-2093.74,0.00014356,3]
[330690243,1719711078931,-500.0,0.00014356,3]
[330690244,1719711078944,-741.16,0.00014356,3]
[330690245,1719711078953,-500.0,0.00014356,3]
[330690246,1719711078963,-517.54,0.00014356,3]
[330690247,1719711078974,-1584.98,0.00014356,3]
[330690248,1719711078984,-17519.3,0.00014356,3]
[330690249,1719711078993,-500.0,0.00014356,3]
[330690250,1719711079003,-2255.93,0.00014356,3]
[330690251,1719711079012,-500.0,0.00014356,3]
[330690252,1719711079022,-2373.06,0.00014356,3]
[330690253,1719711079031,-733.6,0.00014356,3]
[330690254,1719711079040,-730.7,0.00014356,3]
[330690255,1719711079050,-1366.43,0.00014356,3]
[330690256,1719711079059,-500.0,0.00014356,3]
[330690257,1719711079069,-1233.97,0.00014356,3]
[330690258,1719711079078,-500.0,0.00014356,3]
[330690259,1719711079088,-973.08,0.00014356,3]
[330690260,1719711079098,-548.85347536,0.00014356,3]
[330690261,1719711079119,-500.0,0.00014356,3]
[330690262,1719711079131,-500.0,0.00014356,3]
[330690263,1719711079141,-565.49,0.00014356,3]
[330690264,1719711079151,-1453.68,0.00014356,3]
[330690265,1719711079161,-500.0,0.00014356,3]
[330690266,1719711079175,-500.0,0.00014356,3]
[330690267,1719711079184,-1103.39,0.00014356,3]
[330690268,1719711079194,-500.0,0.00014356,3]
[330690269,1719711079202,-500.0,0.00014356,3]
[330690270,1719711079212,-500.0,0.00014356,3]
[330690271,1719711079221,-2749.71,0.00014356,3]
[330690272,1719711079230,-500.0,0.00014356,3]
[330690273,1719711079239,-1470.04,0.00014356,3]
[330690274,1719711079248,-500.0,0.00014356,3]
[330690275,1719711079257,-1000.06,0.00014356,3]
[330690276,1719711079266,-789.6,0.00014356,3]
[330690277,1719711079276,-3074.88,0.00014356,3]
[330690278,1719711079285,-587.36,0.00014356,3]
[330690279,1719711079295,-1717.46,0.00014356,3]
[330690280,1719711079304,-553.57,0.00014356,3]
[330690281,1719711079313,-538.78,0.00014356,3]
[330690282,1719711079323,-734.77,0.00014356,3]
[330690283,1719711079332,-872.59,0.00014356,3]
[330690284,1719711079341,-4030.58,0.00014356,3]
[330690285,1719711079351,-505.1,0.00014356,3]
[330690286,1719711079360,-1619.26,0.00014356,3]
[330690287,1719711079370,-500.0,0.00014356,3]
[330690288,1719711079379,-1040.75,0.00014356,3]
[330690289,1719711079388,-500.0,0.00014356,3]
[330690290,1719711079398,-1019.73,0.00014356,3]
[330690291,1719711079407,-500.0,0.00014356,3]
[330690292,1719711079422,-500.0,0.00014356,3]
[330690293,1719711079432,-500.0,0.00014356,3]
[330690294,1719711079441,-917.98,0.00014356,3]
[330690295,1719711079451,-500.0,0.00014356,3]
[330690296,1719711079464,-544.73,0.00014356,3]
[330690297,1719711079474,-2026.5,0.00014356,3]
[330690298,1719711079484,-500.0,0.00014356,3]
[330690299,1719711079494,-1434.62,0.00014356,3]
[330690300,1719711079504,-914.82,0.00014356,3]
[330690301,1719711079513,-2283.96,0.00014356,3]
[330690302,1719711079523,-853.8,0.00014356,3]
[330690303,1719711079533,-806.6,0.00014356,3]
[330690304,1719711079543,-500.0,0.00014356,3]
[330690305,1719711079553,-990.19,0.00014356,3]
[330690306,1719711079562,-527.87,0.00014356,3]
[330690307,1719711079572,-500.0,0.00014356,3]
[330690308,1719711079582,-555.08,0.00014356,3]
[330690309,1719711079592,-500.0,0.00014356,3]
[330690310,1719711079605,-2932.06,0.00014356,3]
[330690311,1719711079616,-504.7213484,0.00014356,3]
[330690312,1719711079625,-1092.71,0.00014356,3]
[330690313,1719711079635,-500.0,0.00014356,3]
[330690314,1719711079795,-1430.53,0.00014356,3]
[330690315,1719711079806,-866.85,0.00014356,3]
[330690316,1719711079816,-500.0,0.00014356,3]
[330690317,1719711079825,-500.0,0.00014356,3]
[330690318,1719711079834,-668.37,0.00014356,3]
[330690319,1719711079844,-500.0,0.00014356,3]
[330690320,1719711079853,-726.78,0.00014356,3]
[330690321,1719711079863,-804.46,0.00014356,3]
[330690322,1719711079872,-500.0,0.00014356,3]
[330690323,1719711079882,-962.38,0.00014356,3]
[330690324,1719711079891,-623.27,0.00014356,3]
[330690325,1719711079902,-500.0,0.00014356,3]
[330690326,1719711079911,-1151.96,0.00014356,3]
[330690327,1719711079922,-500.0,0.00014356,3]
[330690328,1719711079935,-1231.81,0.00014356,3]
[330690329,1719711079946,-572.24,0.00014356,3]
[330690330,1719711079955,-500.0,0.00014356,3]
[330690331,1719711079965,-500.0,0.00014356,3]
[330690332,1719711079975,-789.18,0.00014356,3]
[330690333,1719711079985,-500.0,0.00014356,3]
[330690334,1719711079995,-500.0,0.00014356,3]
[330690335,1719711080005,-2872.85,0.00014356,3]
[330690336,1719711080015,-1003.38,0.00014356,3]
[330690337,1719711080025,-2940.4684663,0.00014379,2]
[330690338,1719711080035,-9153.93675364,0.00014379,2]
[330690339,1719711080045,-178.59,0.00014384,2]
[330690340,1719711080055,-200.00073663,0.000144,2]
[330690341,1719711080065,-150.0,0.000144,2]
[330690342,1719711080075,-150.0,0.00014438,2]
[330690343,1719711080085,-150.0,0.00014438,2]
[330690344,1719711080095,-5374.12764461,0.00014442,2]
[330690345,1719711080105,-1246.57,0.00014465,3]
[330690346,1719711080115,-2620.27,0.00014465,3]
[330690347,1719711080124,-771.15,0.00014465,3]
[330690348,1719711080134,-2420.64,0.00014465,3]
[330690349,1719711080144,-1036.09,0.00014465,3]
[330690350,1719711080154,-2486.42,0.00014465,3]
[330690351,1719711080163,-1825.95,0.00014465,3]
[330690352,1719711080174,-636.59898527,0.00014465,3]
[330690353,1719711080184,-3712.27,0.00014465,3]
[330690354,1719711080195,-500.0,0.00014465,3]
[330690355,1719711080205,-500.0,0.00014465,3]
[330690356,1719711080215,-500.0,0.00014465,3]
[330690357,1719711080225,-484.41485228,0.00014465,3]
[330690358,1719711080235,-500.0,0.00014465,3]
[330690359,1719711080246,-500.0,0.00014465,3]
[330690360,1719711080256,-500.0,0.00014465,3]
[330690361,1719711080266,-2737.34,0.00014465,3]
[330690362,1719711080276,-1116.78,0.00014465,3]
[330690363,1719711080286,-500.0,0.00014465,3]
[330690364,1719711080296,-500.0,0.00014465,3]
[330690365,1719711080306,-500.0,0.00014465,3]
[330690366,1719711080318,-469.75388446,0.00014465,3]
[330690367,1719711080328,-500.0,0.00014465,3]
[330690368,1719711080338,-2164.74,0.00014465,3]
[330690369,1719711080349,-500.0,0.00014465,3]
[330690370,1719711080364,-500.0,0.00014465,3]
[330690371,1719711080374,-500.0,0.00014465,3]
[330690372,1719711080383,-500.0,0.00014465,3]
[330690373,1719711080394,-1569.95,0.00014465,3]
[330690374,1719711080404,-500.0,0.00014465,3]
[330690375,1719711080414,-500.0,0.00014465,3]
[330690376,1719711080423,-4687.88,0.00014465,3]
[330690377,1719711080433,-500.0,0.00014465,3]
[330690378,1719711080443,-500.0,0.00014465,3]
[330690379,1719711080454,-500.0,0.00014465,3]
[330690380,1719711080463,-684.17,0.00014465,3]
[330690381,1719711080473,-713.16,0.00014465,3]
[330690382,1719711080483,-500.0,0.00014465,3]
[330690383,1719711080493,-500.0,0.00014465,3]
[330690384,1719711080503,-500.0,0.00014465,3]
[330690385,1719711080514,-1295.72,0.00014465,3]
[330690386,1719711080524,-500.0,0.00014465,3]
[330690387,1719711080534,-500.0,0.00014465,3]
[330690388,1719711080544,-500.0,0.00014465,3]
[330690389,1719711080555,-1900.6,0.00014465,3]
[330690390,1719711080565,-500.0,0.00014465,3]
[330690391,1719711080576,-500.0,0.00014465,3]
[330690392,1719711080586,-710.78,0.00014465,3]
[330690393,1719711080596,-500.0,0.00014465,3]
[330690394,1719711080610,-500.0,0.00014465,3]
[330690395,1719711080620,-1699.63,0.00014465,3]
[330690396,1719711080629,-500.0,0.00014465,3]
[330690397,1719711080639,-500.0,0.00014465,3]
[330690398,1719711080649,-500.0,0.00014465,3]
[330690399,1719711080659,-601.07,0.00014465,3]
[330690400,1719711080670,-1066.9,0.00014465,3]
[330690401,1719711080682,-500.0,0.00014465,3]
[330690402,1719711080692,-500.0,0.00014465,3]
[330690403,1719711080702,-832.37,0.00014465,3]
[330690404,1719711080712,-500.0,0.00014465,3]
[330690405,1719711080722,-500.0,0.00014465,3]
[330690406,1719711080732,-1071.66,0.00014465,3]
[330690407,1719711080742,-500.0,0.00014465,3]
[330690408,1719711080751,-500.0,0.00014465,3]
[330690409,1719711080761,-716.2,0.00014465,3]
[330690410,1719711080772,-761.79,0.00014465,3]
[330690411,1719711080782,-533.26,0.00014465,3]
[330690412,1719711080796,-519.14,0.00014465,3]
[330690413,1719711080807,-500.0,0.00014465,3]
[330690414,1719711080817,-663.53,0.00014465,3]
[330690415,1719711080826,-500.0,0.00014465,3]
[330690416,1719711080836,-911.02,0.00014465,3]
[330690417,1719711080846,-500.0,0.00014465,3]
[330690418,1719711080857,-500.98,0.00014465,3]
[330690419,1719711080867,-1050.04,0.00014465,3]
[330690420,1719711080876,-755.44,0.00014465,3]
[330690421,1719711080886,-627.64,0.00014465,3]
[330690422,1719711080897,-1768.33,0.00014465,3]
[330690423,1719711080907,-500.0,0.00014465,3]
[330690424,1719711080919,-500.0,0.00014465,3]
[330690425,1719711080929,-500.0,0.00014465,3]
[330690426,1719711080939,-500.0,0.00014465,3]
[330690427,1719711080950,-500.0,0.00014465,3]
[330690428,1719711080962,-644.01,0.00014465,3]
[330690429,1719711080972,-500.0,0.00014465,3]
[330690430,1719711080982,-889.76,0.00014465,3]
[330690431,1719711080992,-859.12,0.00014465,3]
[330690432,1719711081002,-500.0,0.00014465,3]
[330690433,1719711081012,-500.0,0.00014465,3]
[330690434,1719711081022,-500.0,0.00014465,3]
[330690435,1719711081032,-534.75,0.00014465,3]
[330690436,1719711081042,-500.0,0.00014465,3]
[330690437,1719711081052,-500.0,0.00014465,3]
[330690438,1719711081062,-1138.76,0.00014465,3]
[330690439,1719711081072,-651.9,0.00014465,3]
[330690440,1719711081082,-500.0,0.00014465,3]
[330690441,1719711081093,-500.0,0.00014465,3]
[330690442,1719711081102,-578.29,0.00014465,3]
[330690443,1719711081112,-649.15,0.00014465,3]
[330690444,1719711081122,-721.45,0.00014465,3]
[330690445,1719711081132,-617.2,0.00014465,3]
[330690446,1719711081142,-500.0,0.00014465,3]
[330690447,1719711081152,-595.24,0.00014465,3]
[330690448,1719711081162,-500.0,0.00014465,3]
[330690449,1719711081171,-551.62,0.00014465,3]
[330690450,1719711081181,-500.0,0.00014465,3]
[330690451,1719711081192,-548.68,0.00014465,3]
[330690452,1719711081201,-500.0,0.00014465,3]
[330690453,1719711081211,-780.35,0.00014465,3]
[330690454,1719711081221,-500.0,0.00014465,3]
[330690455,1719711081231,-500.0,0.00014465,3]
[330690456,1719711081241,-540.99,0.00014465,3]
[330690457,1719711081252,-737.39,0.00014465,3]
[330690458,1719711081263,-517.82,0.00014465,3]
[330690459,1719711081273,-500.0,0.00014465,3]
[330690460,1719711081284,-500.0,0.00014465,3]
[330690461,1719711081294,-605.18,0.00014465,3]
[330690462,1719711081303,-500.0,0.00014465,3]
[330690463,1719711081313,-600.31,0.00014465,3]
[330690464,1719711081323,-880.06,0.00014465,3]
[330690465,1719711081334,-500.0,0.00014465,3]
[330690466,1719711081343,-500.0,0.00014465,3]
[330690467,1719711081353,-537.38,0.00014465,3]
[330690468,1719711081362,-1133.19,0.00014465,3]
[330690469,1719711081372,-582.47,0.00014465,3]
[330690470,1719711081382,-772.55,0.00014465,3]
[330690471,1719711081391,-500.0,0.00014465,3]
[330690472,1719711081401,-862.26,0.00014465,3]
[330690473,1719711081413,-510.91,0.00014465,3]
[330690474,1719711081423,-2714.67,0.00014465,3]
[330690475,1719711081432,-802.38,0.00014465,3]
[330690476,1719711081442,-500.0,0.00014465,3]
[330690477,1719711081453,-500.0,0.00014465,3]
[330690478,1719711081466,-521.73,0.00014465,3]
[330690479,1719711081477,-500.0,0.00014465,3]
[330690480,1719711081486,-500.0,0.00014465,3]
[330690481,1719711081497,-500.0,0.00014465,3]
[330690482,1719711081507,-2040.84,0.00014465,3]
[330690483,1719711081518,-500.0,0.00014465,3]
[330690484,1719711081528,-532.39,0.00014465,3]
[330690485,1719711081538,-1265.1,0.00014465,3]
[330690486,1719711081548,-500.0,0.00014465,3]
[330690487,1719711081559,-500.0,0.00014465,3]
[330690488,1719711081569,-500.0,0.00014465,3]
[330690489,1719711081579,-580.97467453,0.00014465,3]
[330690490,1719711081591,-500.0,0.00014465,3]
[330690491,1719711081605,-500.0,0.00014465,3]
[330690492,1719711081617,-952.19,0.00014465,3]
[330690493,1719711081628,-529.97,0.00014465,3]
[330690494,1719711081639,-588.51,0.00014465,3]
[330690495,1719711081650,-500.0,0.00014465,3]
[330690496,1719711081660,-691.24,0.00014465,3]
[330690497,1719711081671,-660.79,0.00014465,3]
[330690498,1719711081681,-500.0,0.00014465,3]
[330690499,1719711081691,-671.71,0.00014465,3]
[330690500,1719711081701,-500.0,0.00014465,3]
[330690501,1719711081711,-500.0,0.00014465,3]
[330690502,1719711081720,-500.0,0.00014465,3]
[330690503,1719711081731,-500.0,0.00014465,3]
[330690504,1719711081741,-500.0,0.00014465,3]
[330690505,1719711081750,-548.68,0.00014465,3]
[330690506,1719711081760,-1531.98,0.00014465,3]
[330690507,1719711081770,-1034.28,0.00014465,3]
[330690508,1719711081780,-500.0,0.00014465,3]
[330690509,1719711081790,-588.83,0.00014465,3]
[330690510,1719711081799,-500.0,0.00014465,3]
[330690511,1719711081809,-538.51,0.00014465,3]
[330690512,1719711081818,-326.21831637,0.00014465,3]
[330690513,1719711081827,-500.0,0.00014465,3]
[330690514,1719711081837,-511.23,0.00014465,3]
[330690515,1719711081847,-500.0,0.00014465,3]
[330690516,1719711081856,-527.93,0.00014465,3]
[330690517,1719711081866,-500.0,0.00014465,3]
[330690518,1719711081875,-500.0,0.00014465,3]
[330690519,1719711081884,-599.85,0.00014465,3]
[330690520,1719711081896,-500.0,0.00014465,3]
[330690521,1719711081906,-564.75,0.00014465,3]
[330690522,1719711081916,-998.73,0.00014465,3]
[330690523,1719711081926,-879.24,0.00014465,3]
[330690524,1719711081936,-500.0,0.00014465,3]
[330690525,1719711081945,-1046.19,0.00014465,3]
[330690526,1719711081955,-1382.68,0.00014465,3]
[330690527,1719711081964,-500.0,0.00014465,3]
[330690528,1719711081974,-500.0,0.00014465,3]
[330690529,1719711081983,-500.0,0.00014465,3]
[330690530,1719711081993,-500.0,0.00014465,3]
[330690531,1719711082002,-1014.61,0.00014465,3]
[330690532,1719711082011,-500.0,0.00014465,3]
[330690533,1719711082369,-500.0,0.00014465,3]
[330690534,1719711082378,-500.0,0.00014465,3]
[330690535,1719711082387,-500.0,0.00014465,3]
[330690536,1719711082397,-500.0,0.00014465,3]
[330690537,1719711082406,-500.0,0.00014465,3]
[330690538,1719711082417,-412.21669303,0.00014465,3]
[330690539,1719711082426,-1918.33,0.00014465,3]
[330690540,1719711082436,-672.21,0.00014465,3]
[330690541,1719711082445,-1152.62,0.00014465,3]
[330690542,1719711082455,-500.0,0.00014465,3]
[330690543,1719711082464,-500.0,0.00014465,3]
[330690544,1719711082474,-1012.12,0.00014465,3]
[330690545,1719711082483,-500.0,0.00014465,3]
[330690546,1719711082493,-805.69,0.00014465,3]
[330690547,1719711082503,-728.19,0.00014465,3]
[330690548,1719711082512,-500.75,0.00014465,3]
[330690549,1719711082521,-500.0,0.00014465,3]
[330690550,1719711082530,-1145.72,0.00014465,3]
[330690551,1719711082539,-500.0,0.00014465,3]
[330690552,1719711082549,-636.14,0.00014465,3]
[330690553,1719711082559,-500.0,0.00014465,3]
[330690554,1719711082568,-959.16,0.00014465,3]
[330690555,1719711082578,-500.0,0.00014465,3]
[330690556,1719711082587,-532.97,0.00014465,3]
[330690557,1719711082597,-726.22,0.00014465,3]
[330690558,1719711082610,-500.0,0.00014465,3]
[330690559,1719711082619,-500.0,0.00014465,3]
[330690560,1719711082629,-796.05,0.00014465,3]
[330690561,1719711082638,-500.0,0.00014465,3]
[330690562,1719711082649,-500.0,0.00014465,3]
[330690563,1719711082660,-500.0,0.00014465,3]
[330690564,1719711082673,-500.0,0.00014465,3]
[330690565,1719711082683,-500.0,0.00014465,3]
[330690566,1719711082693,-500.0,0.00014465,3]
[330690567,1719711082703,-1185.2,0.00014465,3]
[330690568,1719711082712,-500.0,0.00014465,3]
[330690569,1719711082722,-500.0,0.00014465,3]
[330690570,1719711082731,-583.84,0.00014465,3]
[330690571,1719711082742,-296.18,0.00014465,3]
[330690572,1719711082751,-500.0,0.00014465,3]
[330690573,1719711082761,-2306.38,0.00014465,3]
[330690574,1719711082771,-712.33,0.00014465,3]
[330690575,1719711082780,-500.0,0.00014465,3]
[330690576,1719711082790,-500.0,0.00014465,3]
[330690577,1719711082799,-500.0,0.00014465,3]
[330690578,1719711082810,-500.0,0.00014465,3]
[330690579,1719711082820,-567.32,0.00014465,3]
[330690580,1719711082830,-1188.2,0.00014465,3]
[330690581,1719711082839,-160.65750728,0.00014465,3]
[330690582,1719711082849,-500.0,0.00014465,3]
[330690583,1719711082859,-500.0,0.00014465,3]
[330690584,1719711082868,-405.4420916,0.00014465,3]
[330690585,1719711082878,-1071.25,0.00014465,3]
[330690586,1719711082888,-708.58,0.00014465,3]
[330690587,1719711082900,-791.93,0.00014465,3]
[330690588,1719711082910,-549.76,0.00014465,3]
[330690589,1719711082921,-500.0,0.00014465,3]
[330690590,1719711082931,-759.26,0.00014465,3]
[330690591,1719711082940,-538.9,0.00014465,3]
[330690592,1719711082950,-500.0,0.00014465,3]
[330690593,1719711082960,-531.54199867,0.00014465,3]
[330690594,1719711082969,-500.0,0.00014465,3]
[330690595,1719711082978,-500.0,0.00014465,3]
[330690596,1719711082988,-500.0,0.00014465,3]
[330690597,1719711082998,-500.0,0.00014465,3]
[330690598,1719711083008,-608.49,0.00014465,3]
[330690599,1719711083017,-660.44,0.00014465,3]
[330690600,1719711083027,-500.0,0.00014465,3]
[330690601,1719711083036,-2629.63,0.00014465,3]
[330690602,1719711083045,-500.0,0.00014465,3]
[330690603,1719711083055,-1298.08,0.00014465,3]
[330690604,1719711083064,-500.0,0.00014465,3]
[330690605,1719711083073,-721.44,0.00014465,3]
[330690606,1719711083083,-551.41,0.00014465,3]
[330690607,1719711083093,-500.0,0.00014465,3]
[330690608,1719711083103,-945.69,0.00014465,3]
[330690609,1719711083113,-500.0,0.00014465,3]
[330690610,1719711083122,-525.15,0.00014465,3]
[330690611,1719711083131,-1708.5,0.00014465,3]
[330690612,1719711083140,-781.98,0.00014465,3]
[330690613,1719711083149,-1393.7,0.00014465,3]
[330690614,1719711083159,-686.06,0.00014465,3]
[330690615,1719711083169,-500.0,0.00014465,3]
[330690616,1719711083179,-500.0,0.00014465,3]
[330690617,1719711083189,-500.0,0.00014465,3]
[330690618,1719711083198,-1608.03,0.00014465,3]
[330690619,1719711083207,-574.91,0.00014465,3]
[330690620,1719711083217,-500.0,0.00014465,3]
[330690621,1719711083227,-500.0,0.00014465,3]
[330690622,1719711083236,-679.33,0.00014465,3]
[330690623,1719711083247,-500.0,0.00014465,3]
[330690624,1719711083256,-500.0,0.00014465,3]
[330690625,1719711083266,-500.0,0.00014465,3]
[330690626,1719711083277,-500.0,0.00014465,3]
[330690627,1719711083287,-500.0,0.00014465,3]
[330690628,1719711083298,-500.0,0.00014465,3]
[330690629,1719711083306,-4351.69,0.00014465,3]
[330690630,1719711083316,-899.57,0.00014465,3]
[330690631,1719711083326,-590.76,0.00014465,3]
[330690632,1719711083337,-500.0,0.00014465,3]
[330690633,1719711083347,-500.0,0.00014465,3]
[330690634,1719711083356,-581.58,0.00014465,3]
[330690635,1719711083366,-500.0,0.00014465,3]
[330690636,1719711083375,-719.02,0.00014465,3]
[330690637,1719711083385,-500.0,0.00014465,3]
[330690638,1719711083395,-680.73,0.00014465,3]
[330690639,1719711083404,-1466.68,0.00014465,3]
[330690640,1719711083415,-500.0,0.00014465,3]
[330690641,1719711083424,-1052.34,0.00014465,3]
[330690642,1719711083435,-8291.65,0.00014465,3]
[330690643,1719711083447,-500.0,0.00014465,3]
[330690644,1719711083457,-500.0,0.00014465,3]
[330690645,1719711083467,-500.0,0.00014465,3]
[330690646,1719711083477,-500.0,0.00014465,3]
[330690647,1719711083486,-448.11205803,0.00014465,3]
[330690648,1719711083496,-500.0,0.00014465,3]
[330690649,1719711083505,-857.65,0.00014465,3]
[330690650,1719711083515,-500.0,0.00014465,3]
[330690651,1719711083524,-733.86,0.00014465,3]
[330690652,1719711083534,-2739.13,0.00014465,3]
[330690653,1719711083543,-500.0,0.00014465,3]
[330690654,1719711083552,-500.0,0.00014465,3]
[330690655,1719711083562,-1160.63,0.00014465,3]
[330690656,1719711083571,-1644.16,0.00014465,3]
[330690657,1719711083581,-709.63,0.00014465,3]
[330690658,1719711083590,-614.11,0.00014465,3]
[330690659,1719711083602,-500.0,0.00014465,3]
[330690660,1719711083613,-688.73,0.00014465,3]
[330690661,1719711083622,-500.0,0.00014465,3]
[330690662,1719711083631,-500.0,0.00014465,3]
[330690663,1719711083643,-515.33,0.00014465,3]
[330690664,1719711083653,-1136.46,0.00014465,3]
[330690665,1719711083662,-952.21,0.00014465,3]
[330690666,1719711083672,-651.27,0.00014465,3]
[330690667,1719711083683,-1657.35,0.00014465,3]
[330690668,1719711083693,-1024.41,0.00014465,3]
[330690669,1719711083702,-500.0,0.00014465,3]
[330690670,1719711083712,-500.0,0.00014465,3]
[330690671,1719711083721,-666.12,0.00014465,3]
[330690672,1719711083731,-569.76,0.00014465,3]
[330690673,1719711083740,-1272.44,0.00014465,3]
[330690674,1719711083750,-500.0,0.00014465,3]
[330690675,1719711083760,-990.57,0.00014465,3]
[330690676,1719711083770,-500.0,0.00014465,3]
[330690677,1719711083780,-973.19,0.00014465,3]
[330690678,1719711083790,-2333.23,0.00014465,3]
[330690679,1719711083800,-500.0,0.00014465,3]
[330690680,1719711083810,-737.96,0.00014465,3]
[330690681,1719711083820,-2346.07,0.00014465,3]
[330690682,1719711083829,-681.0,0.00014465,3]
[330690683,1719711083839,-500.0,0.00014465,3]
[330690684,1719711083849,-500.0,0.00014465,3]
[330690685,1719711083859,-500.0,0.00014465,3]
[330690686,1719711083868,-2093.74,0.00014465,3]
[330690687,1719711083878,-500.0,0.00014465,3]
[330690688,1719711083888,-741.16,0.00014465,3]
[330690689,1719711083899,-500.0,0.00014465,3]
[330690690,1719711083909,-517.54,0.00014465,3]
[330690691,1719711083919,-1584.98,0.00014465,3]
[330690692,1719711083929,-17519.3,0.00014465,3]
[330690693,1719711083938,-500.0,0.00014465,3]
[330690694,1719711083947,-2255.93,0.00014465,3]
[330690695,1719711083957,-500.0,0.00014465,3]
[330690696,1719711083966,-2373.06,0.00014465,3]
[330690697,1719711083976,-733.6,0.00014465,3]
[330690698,1719711083986,-730.7,0.00014465,3]
[330690699,1719711083995,-1366.43,0.00014465,3]
[330690700,1719711084005,-500.0,0.00014465,3]
[330690701,1719711084015,-1233.97,0.00014465,3]
[330690702,1719711084025,-500.0,0.00014465,3]
[330690703,1719711084034,-973.08,0.00014465,3]
[330690704,1719711084043,-500.0,0.00014465,3]
[330690705,1719711084054,-500.0,0.00014465,3]
[330690706,1719711084063,-565.49,0.00014465,3]
[330690707,1719711084072,-1453.68,0.00014465,3]
[330690708,1719711084082,-335.21697083,0.00014465,3]
[330690709,1719711084091,-500.0,0.00014465,3]
[330690710,1719711084101,-1103.39,0.00014465,3]
[330690711,1719711084111,-500.0,0.00014465,3]
[330690712,1719711084121,-500.0,0.00014465,3]
[330690713,1719711084131,-500.0,0.00014465,3]
[330690714,1719711084140,-2749.71,0.00014465,3]
[330690715,1719711084150,-500.0,0.00014465,3]
[330690716,1719711084159,-1470.04,0.00014465,3]
[330690717,1719711084169,-500.0,0.00014465,3]
[330690718,1719711084179,-1000.06,0.00014465,3]
[330690719,1719711084188,-789.6,0.00014465,3]
[330690720,1719711084197,-3074.88,0.00014465,3]
[330690721,1719711084206,-587.36,0.00014465,3]
[330690722,1719711084215,-1717.46,0.00014465,3]
[330690723,1719711084225,-553.57,0.00014465,3]
[330690724,1719711084234,-538.78,0.00014465,3]
[330690725,1719711084244,-734.77,0.00014465,3]
[330690726,1719711084253,-872.59,0.00014465,3]
[330690727,1719711084263,-4030.58,0.00014465,3]
[330690728,1719711084272,-505.1,0.00014465,3]
[330690729,1719711084282,-1619.26,0.00014465,3]
[330690730,1719711084291,-500.0,0.00014465,3]
[330690731,1719711084300,-1040.75,0.00014465,3]
[330690732,1719711084309,-500.0,0.00014465,3]
[330690733,1719711084319,-500.0,0.00014465,3]
[330690734,1719711084328,-1019.73,0.00014465,3]
[330690735,1719711084338,-500.0,0.00014465,3]
[330690736,1719711084347,-456.48590434,0.00014465,3]
[330690737,1719711084357,-917.98,0.00014465,3]
[330690738,1719711084367,-544.73,0.00014465,3]
[330690739,1719711084378,-500.0,0.00014465,3]